bitfinex/quotes_ETHUSD_20230831
["timestamp","ask_amount","ask_price","bid_price","bid_amount"]
[1693483365157,4.502,1709.8,1708.8,1.65613587]
[1693483365436,0.4502,1709.7,1709.5,1.65613587]
[1693483365624,1.0742033,1710.0,1709.9,1.65613587]
[1693483366000,66.3283153,1710.0,1709.9,1.65613587]
[1693483366202,66.3283153,1710.0,1709.1,9.0]
[1693483366203,1.0742033,1710.0,1709.4,1.65613587]
[1693483366421,1.0742033,1710.0,1709.9,1.65613587]
[1693483366422,66.3283153,1710.0,1709.9,1.65613587]
[1693483366625,1.0742033,1710.0,1709.9,1.65613587]
[1693483366804,66.3283153,1710.0,1709.4,1.65613587]
[1693483367011,6.25219764,1709.9,1709.2,1.65613587]
[1693483367227,71.50630964,1709.9,1709.2,1.65613587]
[1693483367424,70.99447537,1709.9,1709.4,1.65613587]
[1693483367719,65.254112,1709.8,1709.4,1.65613587]
[1693483368031,65.254112,1709.8,1708.6,4.15813587]
[1693483368208,65.254112,1709.8,1708.4,1.65613587]
[1693483368209,2.502,1709.6,1708.4,1.65613587]
[1693483368550,2.502,1709.0,1708.4,1.65613587]
[1693483368778,2.502,1709.0,1708.2,1.65613587]
[1693483369060,68.734112,1708.9,1708.2,1.65613587]
[1693483369270,69.24594627,1708.9,1707.7,1.65613587]
[1693483369406,2.502,1708.7,1708.2,1.65613587]
[1693483369606,3.0,1708.6,1707.7,1.65613587]
[1693483369820,3.0,1708.6,1708.5,1.65613587]
[1693483369821,65.254112,1708.6,1708.5,1.65613587]
[1693483370018,5.74036337,1709.7,1709.0,1.65613587]
[1693483370214,2.502,1709.9,1709.3,1.65613587]
[1693483370418,65.254112,1709.6,1709.1,0.30270844]
[1693483370618,2.0,1709.6,1709.1,0.30270844]
[1693483370819,65.76594627,1709.5,1709.1,1.65613587]
[1693483371122,3.5762033,1710.0,1709.4,1.65613587]
[1693483371323,0.35762033,1709.9,1709.2,1.65613587]
[1693483371553,1.92658572,1709.3,1709.2,1.65613587]
[1693483372026,67.18069772,1709.3,1709.2,1.65613587]
[1693483372230,67.18069772,1709.3,1709.2,0.30089764]
[1693483372576,67.69253199,1709.3,1708.7,1.65613587]
[1693483372718,67.69253199,1709.3,1707.4,3.0]
[1693483372719,2.502,1709.1,1708.4,1.65613587]
[1693483372917,6.25219764,1709.2,1709.0,1.65613587]
[1693483372918,70.99447537,1709.2,1709.0,1.65613587]
[1693483373165,5.74036337,1709.2,1709.0,1.65613587]
[1693483373321,1.92658572,1709.3,1709.0,1.65613587]
[1693483373624,65.254112,1709.2,1709.0,1.65613587]
[1693483374248,67.596758,1709.2,1709.0,1.65613587]
[1693483374648,65.254112,1709.1,1709.0,1.65613587]
[1693483374868,65.254112,1709.1,1709.0,4.65613587]
[1693483375088,1.92658572,1709.3,1709.2,1.65613587]
[1693483375783,67.69253199,1709.3,1709.2,1.65613587]
[1693483375958,73.43289536,1709.3,1709.2,1.65613587]
[1693483376344,1.62739736,1709.1,1708.8,1.65613587]
[1693483376545,1.62739736,1709.1,1708.5,2.7658]
[1693483376744,65.76594627,1709.0,1708.2,1.65613587]
[1693483377077,65.76594627,1709.0,1708.4,1.65613587]
[1693483377078,65.254112,1708.9,1708.4,1.65613587]
[1693483377385,5.74036337,1708.8,1708.4,1.65613587]
[1693483377680,71.236112,1708.7,1708.0,1.65613587]
[1693483377879,71.236112,1708.7,1707.0,6.0]
[1693483377880,2.502,1708.4,1707.4,1.65613587]
[1693483378081,3.51183427,1708.3,1707.4,1.65613587]
[1693483378379,68.76594627,1708.3,1707.4,1.65613587]
[1693483378679,68.76594627,1708.3,1707.2,1.65613587]
[1693483378680,2.502,1708.1,1707.2,1.65613587]
[1693483378979,4.502,1707.8,1706.8,1.65613587]
[1693483379180,4.502,1707.8,1706.6,0.1]
[1693483379181,2.502,1707.5,1706.9,1.65613587]
[1693483379388,2.502,1707.5,1707.1,1.65613587]
[1693483379586,3.0,1707.6,1706.6,3.1]
[1693483379587,65.254112,1707.4,1707.2,1.65613587]
[1693483379742,4.35338145,1707.3,1707.2,1.65613587]
[1693483379946,69.60749345,1707.3,1707.2,1.65613587]
[1693483380355,65.254112,1707.3,1707.2,1.65613587]
[1693483380564,5.74036337,1708.2,1707.9,1.65613587]
[1693483380763,2.502,1708.7,1708.1,1.65613587]
[1693483380961,3.01383427,1708.7,1708.0,2.00952754]
[1693483381289,65.76917873,1708.6,1708.1,1.65613587]
[1693483381449,2.502,1708.4,1708.0,0.35339167]
[1693483381650,2.502,1708.1,1707.4,1.65613587]
[1693483381890,0.51506673,1708.0,1707.5,1.65613587]
[1693483382050,66.0708854,1708.0,1707.5,1.65613587]
[1693483382256,65.55581867,1708.0,1707.9,1.65613587]
[1693483382460,4.085,1708.8,1708.1,1.65613587]
[1693483382787,0.51506673,1709.0,1708.4,1.65613587]
[1693483382973,65.254112,1708.7,1708.4,1.65613587]
[1693483383289,65.254112,1708.6,1708.5,1.65613587]
[1693483383979,1.62739736,1709.1,1708.5,1.65613587]
[1693483384283,65.76917873,1709.0,1708.5,1.65613587]
[1693483384485,5.74036337,1708.9,1708.8,1.65613587]
[1693483384786,70.99447537,1708.9,1708.8,1.65613587]
[1693483385649,65.254112,1708.9,1708.8,4.65613587]
[1693483385850,1.0742033,1710.0,1709.6,1.65613587]
[1693483386049,1.0742033,1710.0,1709.0,3.0]
[1693483386050,0.27065765,1709.5,1709.0,3.0]
[1693483386289,0.27065765,1709.5,1709.2,3.0]
[1693483386486,60.105089,1709.4,1708.9,3.0]
[1693483386675,60.105089,1709.4,1709.1,3.0]
[1693483386989,0.27065765,1709.5,1709.1,3.0]
[1693483387163,0.27065765,1709.5,1709.4,3.0]
[1693483387485,1.0742033,1710.0,1709.9,3.0]
[1693483387789,43.8252103,1710.0,1709.4,3.0]
[1693483387994,43.8252103,1710.0,1709.7,3.0]
[1693483388151,1.0742033,1710.0,1709.8,3.0]
[1693483388350,0.101,1710.7,1710.3,3.0]
[1693483389565,0.101,1710.7,1710.0,5.5589]
[1693483390093,0.101,1710.7,1710.2,3.0]
[1693483390751,0.101,1710.7,1710.0,5.5589]
[1693483390956,1.6111,1710.7,1710.0,5.5589]
[1693483391156,0.51506673,1710.6,1709.5,3.0]
[1693483391582,0.51506673,1710.6,1709.2,3.0]
[1693483391782,0.51506673,1710.6,1708.4,0.47527439]
[1693483391783,0.51506673,1710.6,1709.5,3.0]
[1693483392408,0.51506673,1710.6,1708.8,3.0]
[1693483392409,0.51506673,1710.6,1709.9,3.0]
[1693483392729,0.101,1710.7,1710.6,3.0]
[1693483393006,0.101,1710.7,1710.6,1.3739358]
[1693483393376,0.101,1710.7,1710.1,3.0]
[1693483393567,0.101,1710.7,1710.0,1.3739358]
[1693483393767,1.6111,1710.7,1710.0,1.3739358]
[1693483393986,1.6111,1710.7,1709.7,1.3739358]
[1693483394299,4.6111,1710.7,1709.7,1.3739358]
[1693483394498,4.6111,1710.7,1710.0,1.3739358]
[1693483394499,1.6111,1710.7,1710.0,1.3739358]
[1693483394802,1.6111,1710.7,1709.6,1.3739358]
[1693483395008,1.6260642,1710.4,1709.6,1.3739358]
[1693483395606,1.6260642,1710.4,1709.3,2.742]
[1693483395806,1.6260642,1710.2,1709.0,1.3739358]
[1693483396004,4.6260642,1710.2,1709.0,1.3739358]
[1693483396214,4.6260642,1710.2,1708.2,6.0]
[1693483396215,1.6260642,1709.9,1708.8,1.3739358]
[1693483396410,1.6260642,1709.6,1708.8,1.3739358]
[1693483396571,4.085,1709.9,1708.4,1.3739358]
[1693483396572,1.6260642,1709.3,1708.4,1.3739358]
[1693483396768,1.6260642,1709.3,1707.7,3.0]
[1693483396769,1.6260642,1709.3,1708.2,1.3739358]
[1693483396968,3.48,1709.8,1708.2,1.3739358]
[1693483396969,1.6260642,1709.1,1708.2,1.3739358]
[1693483397311,1.6260642,1709.1,1708.5,0.46268759]
[1693483397475,1.6260642,1709.3,1708.2,1.3739358]
[1693483397675,1.6260642,1709.1,1708.2,1.3739358]
[1693483398211,1.6260642,1709.1,1708.1,0.1]
[1693483398212,1.6260642,1708.9,1708.1,0.1]
[1693483398386,1.6260642,1708.5,1708.1,0.1]
[1693483398587,0.51506673,1708.4,1708.1,0.1]
[1693483398896,1.6260642,1708.5,1708.1,0.1]
[1693483399319,2.14113093,1708.5,1708.1,0.1]
[1693483399617,0.51506673,1708.4,1708.1,0.1]
[1693483399807,3.0,1708.6,1708.1,0.1]
[1693483399977,1.373936,1708.4,1708.1,0.1]
[1693483400838,1.6260642,1709.2,1708.3,1.3739358]
[1693483401141,5.90525282,1709.1,1708.2,0.46743505]
[1693483401413,5.90525282,1709.1,1708.1,0.1]
[1693483401630,6.42031955,1709.1,1708.3,0.46585238]
[1693483401905,6.54728478,1709.0,1708.3,1.83978818]
[1693483402110,5.90525282,1708.9,1708.1,4.1709358]
[1693483403017,5.90525282,1708.9,1708.3,1.3739358]
[1693483403403,5.90525282,1708.9,1708.4,0.46426989]
[1693483403781,5.90525282,1708.9,1708.5,1.3739358]
[1693483403782,8.24865282,1708.9,1708.5,1.3739358]
[1693483403979,2.3434,1708.9,1708.5,1.3739358]
[1693483404179,5.90434663,1708.8,1708.5,1.83662339]
[1693483404579,1.6260642,1709.4,1708.5,1.83662339]
[1693483404775,4.49954485,1709.1,1708.5,0.46268759]
[1693483404983,6.35430277,1709.0,1708.5,0.46268759]
[1693483405220,5.90434828,1708.9,1708.4,1.3739358]
[1693483405536,5.90434828,1708.9,1708.8,1.3739358]
[1693483405678,1.18386503,1709.8,1708.8,1.3739358]
[1693483405679,5.90434828,1709.3,1708.8,1.3739358]
[1693483405878,8.77782893,1709.2,1708.6,1.3739358]
[1693483406098,5.90434828,1709.1,1708.6,1.3739358]
[1693483406399,9.65561182,1709.1,1708.6,1.3739358]
[1693483406595,5.90434828,1709.0,1708.6,1.3739358]
[1693483406978,2.87348065,1708.9,1708.4,1.3739358]
[1693483407179,5.90434828,1708.8,1708.1,4.1709358]
[1693483407427,8.77782893,1708.8,1708.1,4.1709358]
[1693483407585,6.78213117,1708.7,1708.2,0.46743505]
[1693483407941,6.78213117,1708.7,1708.1,4.1709358]
[1693483407942,5.90434828,1708.6,1708.3,1.3739358]
[1693483408387,5.90434828,1708.6,1708.4,1.3739358]
[1693483409783,5.90434828,1708.5,1708.4,1.3739358]
[1693483410115,0.5920537,1709.3,1708.8,1.3739358]
[1693483410278,8.77776049,1709.2,1708.6,1.3739358]
[1693483410480,6.78205589,1709.1,1708.6,1.3739358]
[1693483410681,2.87348065,1708.9,1708.2,1.3739358]
[1693483411213,0.87777605,1709.1,1708.4,1.3739358]
[1693483411413,5.90461144,1709.0,1708.4,1.3739358]
[1693483411620,5.90461144,1709.0,1708.6,1.3739358]
[1693483411779,8.77809209,1709.0,1708.6,1.3739358]
[1693483411980,2.87348065,1709.0,1708.6,1.3739358]
[1693483412409,2.87348065,1709.0,1708.4,1.3739358]
[1693483412814,5.90442561,1708.9,1708.6,1.3739358]
[1693483413007,0.5920537,1709.4,1708.8,1.3739358]
[1693483413177,5.90377764,1709.3,1708.8,1.3739358]
[1693483413611,2.87348065,1709.2,1708.6,1.3739358]
[1693483413812,5.90377764,1709.1,1708.6,1.3739358]
[1693483414020,2.87348065,1709.0,1708.4,1.3739358]
[1693483414218,5.90440498,1708.9,1708.4,1.3739358]
[1693483414515,0.5904405,1708.8,1708.4,1.3739358]
[1693483414917,5.5920537,1709.3,1708.6,1.3739358]
[1693483415080,8.77766637,1709.2,1708.6,1.3739358]
[1693483415282,5.90418572,1709.1,1708.6,1.3739358]
[1693483415519,2.87348065,1709.0,1708.6,1.3739358]
[1693483415819,14.46788984,1709.3,1709.0,1.3739358]
[1693483415820,10.0,1709.3,1709.0,1.3739358]
[1693483416024,5.90351427,1709.2,1709.0,1.3739358]
[1693483416889,15.0,1709.3,1709.0,1.3739358]
[1693483417080,15.0,1709.3,1709.2,1.3039358]
[1693483418419,11.2572,1709.3,1709.2,1.3039358]
[1693483418862,14.13068065,1709.3,1708.8,3.9960358]
[1693483418995,9.90244365,1709.2,1708.8,3.9960358]
[1693483419195,3.99920065,1709.2,1708.8,1.3039358]
[1693483419617,5.90361446,1709.1,1708.8,1.3039358]
[1693483420137,2.87348065,1709.0,1708.4,1.3039358]
[1693483420497,2.87348065,1709.0,1708.1,0.1]
[1693483420498,13.600088,1709.3,1709.0,1.3039358]
[1693483420695,11.2572,1709.3,1709.0,1.3039358]
[1693483421120,11.2572,1709.3,1709.2,1.3039358]
[1693483423640,11.2572,1709.3,1709.2,4.17741645]
[1693483424151,12.26643989,1710.1,1709.5,1.3039358]
[1693483424319,5.90143494,1710.0,1709.8,1.3039358]
[1693483426117,5.90143494,1709.9,1709.8,1.3039358]
[1693483426914,0.60886457,1710.2,1709.8,1.3039358]
[1693483426915,5.90143494,1710.1,1709.8,1.3039358]
[1693483427150,5.90143494,1710.0,1709.8,1.3039358]
[1693483427345,5.90143494,1709.9,1709.8,1.3039358]
[1693483427622,5.90143494,1710.2,1709.8,1.3039358]
[1693483427957,5.90090872,1710.1,1709.8,1.3039358]
[1693483428169,5.90090872,1710.1,1709.6,1.3039358]
[1693483428644,6.50977329,1710.1,1709.8,1.3039358]
[1693483428845,5.90090872,1710.0,1709.8,1.3039358]
[1693483429047,0.60886457,1710.2,1709.8,1.3039358]
[1693483429048,5.90090872,1709.9,1709.8,1.3039358]
[1693483429271,3.86342842,1710.5,1710.0,1.3039358]
[1693483429581,7.88601544,1710.4,1710.0,1.3039358]
[1693483429783,5.90020101,1710.3,1710.0,1.3039358]
[1693483431640,2.87348065,1710.2,1709.4,3.2734358]
[1693483431820,5.90020101,1710.1,1709.4,3.2734358]
[1693483432025,2.87348065,1710.0,1709.6,1.3039358]
[1693483432256,5.90020101,1709.9,1709.6,1.3039358]
[1693483433030,8.77368166,1709.9,1709.5,1.3039358]
[1693483433268,2.87348065,1709.6,1708.8,1.3039358]
[1693483433427,2.87348065,1709.6,1709.0,1.3039358]
[1693483433428,8.39620101,1709.5,1709.0,1.3039358]
[1693483433782,5.90020101,1709.4,1709.0,1.3039358]
[1693483433969,6.73982111,1709.4,1709.0,1.3039358]
[1693483434256,0.8396201,1709.4,1709.0,1.3039358]
[1693483434461,2.87348065,1709.6,1709.0,1.3039358]
[1693483434633,5.90292222,1709.5,1709.0,1.3039358]
[1693483435567,2.87348065,1709.4,1709.0,1.3039358]
[1693483435759,5.90292222,1709.3,1709.0,1.3039358]
[1693483436065,1.52216142,1709.7,1709.0,1.3039358]
[1693483436252,9.38516121,1709.6,1709.0,1.3039358]
[1693483436456,9.71481276,1709.5,1709.0,1.3039358]
[1693483436659,5.90302812,1709.4,1709.0,1.3039358]
[1693483436864,8.77650877,1709.4,1709.0,1.3039358]
[1693483437034,5.90302812,1709.3,1709.0,1.3039358]
[1693483437891,8.77650877,1709.3,1709.0,1.3039358]
[1693483438063,3.75113153,1709.3,1709.0,1.3039358]
[1693483438270,8.77678262,1709.2,1708.8,1.3039358]
[1693483438567,8.77678262,1709.2,1708.4,1.3039358]
[1693483438568,5.90364144,1709.1,1708.4,1.3039358]
[1693483438767,2.87348065,1709.0,1708.6,1.3039358]
[1693483439486,2.496,1709.2,1708.6,1.3039358]
[1693483439699,0.60886457,1709.3,1708.8,1.3039358]
[1693483439700,5.90394436,1709.1,1708.8,1.3039358]
[1693483439877,1.52216142,1709.5,1708.8,1.3039358]
[1693483440193,9.38554417,1709.4,1708.8,1.3039358]
[1693483440378,7.50458902,1709.3,1708.8,1.3039358]
[1693483440584,6.65365785,1709.2,1708.8,1.3039358]
[1693483440889,5.90319895,1709.1,1708.8,1.3039358]
[1693483441657,5.90319895,1709.1,1708.3,1.3039358]
[1693483442002,8.85527352,1709.1,1708.3,1.3039358]
[1693483442167,5.90319895,1709.0,1708.3,1.3039358]
[1693483442370,3.46380055,1708.9,1708.4,0.46426989]
[1693483442582,5.90319895,1708.8,1708.4,0.46426989]
[1693483442786,8.7766796,1708.8,1708.4,0.46426989]
[1693483442986,2.87348065,1708.8,1708.3,1.3039358]
[1693483443402,2.34321,1709.1,1708.7,1.3039358]
[1693483443611,9.60510906,1709.2,1708.7,1.3039358]
[1693483443612,5.90399267,1709.0,1708.7,1.3039358]
[1693483443825,0.7504589,1709.2,1708.7,1.3039358]
[1693483444017,5.90356938,1709.1,1708.7,1.3039358]
[1693483444175,5.90356938,1709.0,1708.7,1.3039358]
[1693483444371,8.77705003,1709.0,1708.5,1.3039358]
[1693483444676,5.90356938,1708.9,1708.5,1.3039358]
[1693483445299,8.77705003,1708.9,1708.5,1.3039358]
[1693483445485,2.87348065,1708.9,1708.5,1.76662339]
[1693483446292,5.90409212,1708.8,1708.7,1.3039358]
[1693483446587,0.61038133,1709.3,1709.0,1.3039358]
[1693483446885,0.61038133,1709.3,1708.5,0.46268759]
[1693483446886,8.77665356,1709.2,1708.6,1.3039358]
[1693483447085,6.78083827,1709.1,1708.6,1.3039358]
[1693483447428,6.78083827,1709.1,1708.1,3.1]
[1693483447429,8.77665356,1709.0,1708.1,1.4039358]
[1693483447589,8.77665356,1709.0,1708.4,1.3039358]
[1693483447590,5.90317291,1708.9,1708.4,1.3039358]
[1693483447791,2.87348065,1708.8,1708.4,1.3039358]
[1693483447990,5.90317291,1708.7,1708.4,1.3039358]
[1693483448415,12.99138271,1709.1,1708.6,1.3039358]
[1693483448416,2.343386,1709.1,1708.6,1.3039358]
[1693483448620,5.90359039,1709.0,1708.6,1.3039358]
[1693483448839,0.91557199,1709.3,1708.5,0.46268759]
[1693483448840,5.90359039,1708.9,1708.8,1.3039358]
[1693483448991,0.61038133,1709.4,1709.0,1.3039358]
[1693483449290,5.90296322,1709.3,1709.0,1.3039358]
[1693483449689,5.90296322,1709.3,1708.8,1.3039358]
[1693483450124,9.42777833,1709.3,1708.8,1.3039358]
[1693483450330,5.90296322,1709.2,1708.8,1.3039358]
[1693483450526,5.90296322,1709.2,1709.0,1.3039358]
[1693483450740,5.90296322,1709.2,1708.7,1.3039358]
[1693483450941,5.90296322,1709.2,1709.0,1.3039358]
[1693483451245,5.90296322,1709.1,1708.7,1.3039358]
[1693483451454,5.90296322,1709.1,1708.9,1.3039358]
[1693483452539,5.90296322,1709.1,1708.7,1.3039358]
[1693483452740,5.90296322,1709.1,1708.4,3.0]
[1693483452741,5.90296322,1709.1,1709.0,1.3039358]
[1693483453341,1.52595332,1709.4,1709.0,1.3039358]
[1693483453342,0.61102646,1709.4,1709.0,1.3039358]
[1693483453573,5.90305293,1709.3,1709.0,1.3039358]
[1693483454437,5.90305293,1709.3,1709.2,1.3039358]
[1693483455254,5.90305293,1709.4,1709.2,1.3039358]
[1693483455414,5.90305293,1709.3,1709.2,1.3039358]
[1693483455607,5.90305293,1709.4,1709.2,1.3039358]
[1693483455808,1.52756616,1709.6,1709.4,1.3039358]
[1693483456037,5.90233011,1709.5,1709.4,1.3039358]
[1693483457338,5.90233011,1709.5,1709.0,1.3039358]
[1693483457536,5.90233011,1709.5,1708.5,6.156]
[1693483457537,5.90233011,1709.5,1709.3,1.3039358]
[1693483458833,5.90233011,1709.5,1709.4,1.3039358]
[1693483459039,6.24855364,1709.5,1709.4,1.3039358]
[1693483459251,10.5386267,1709.5,1708.7,1.3039358]
[1693483459454,0.61162458,1709.3,1708.7,1.3039358]
[1693483459655,5.90233011,1709.2,1708.7,1.3039358]
[1693483460043,6.51395469,1709.2,1708.7,1.3039358]
[1693483460245,6.51395469,1709.2,1708.2,8.1285]
[1693483460246,5.90233011,1709.1,1708.9,1.3039358]
[1693483462340,5.82790723,1709.2,1708.9,1.3039358]
[1693483462540,8.7767894,1709.1,1708.6,1.3039358]
[1693483462755,4.54639786,1709.2,1708.8,1.3039358]
[1693483462951,5.90334795,1709.1,1708.8,1.3039358]
[1693483463653,2.87348065,1709.0,1708.4,1.3039358]
[1693483463826,2.87348065,1709.0,1708.6,1.3039358]
[1693483464366,0.61162458,1709.1,1708.6,1.3039358]
[1693483464584,5.90380305,1709.0,1708.6,1.3039358]
[1693483466371,0.61162458,1709.2,1708.8,1.3039358]
[1693483466539,5.90337243,1709.1,1708.8,1.3039358]
[1693483467337,0.61162458,1709.3,1708.8,1.3039358]
[1693483467537,5.9031876,1709.2,1708.8,1.3039358]
[1693483467941,5.9031876,1709.2,1709.1,1.3039358]
[1693483468178,1.22205293,1709.5,1709.3,1.3039358]
[1693483468179,1.52906145,1709.5,1709.3,1.3039358]
[1693483468377,5.90240465,1709.4,1709.3,1.3039358]
[1693483468842,5.90240465,1709.4,1709.0,1.3039358]
[1693483469043,0.61162458,1709.6,1709.3,1.3039358]
[1693483469247,5.90208267,1709.5,1709.3,1.3039358]
[1693483469464,0.61162458,1709.6,1709.3,1.3039358]
[1693483469773,5.90189828,1709.5,1709.3,1.3039358]
[1693483472188,0.61162458,1709.6,1709.3,1.3039358]
[1693483472366,5.9018705,1709.5,1709.3,1.3039358]
[1693483472750,0.61162458,1709.6,1709.3,1.3039358]
[1693483473172,5.90185544,1709.5,1709.3,1.3039358]
[1693483474388,1.52756616,1709.8,1709.7,1.3039358]
[1693483474389,0.61162458,1709.8,1709.7,1.3039358]
[1693483474878,0.92585666,1709.8,1709.7,1.3039358]
[1693483475266,7.44205255,1709.8,1709.7,1.3039358]
[1693483475900,8.35948942,1709.8,1709.7,1.3039358]
[1693483476102,7.74786484,1709.8,1709.5,1.3039358]
[1693483476266,5.90112294,1709.7,1709.2,1.3039358]
[1693483476473,0.61224723,1709.5,1709.2,1.3039358]
[1693483476725,5.90112294,1709.4,1709.2,1.3039358]
[1693483478060,6.51338537,1709.4,1709.2,1.3039358]
[1693483478267,6.55374168,1709.3,1709.2,1.3039358]
[1693483478466,8.09645415,1709.3,1709.0,1.3039358]
[1693483478715,5.90240314,1709.2,1709.0,1.3039358]
[1693483479000,6.51466557,1709.2,1708.8,1.3039358]
[1693483479225,1.26360097,1709.3,1708.8,1.3039358]
[1693483479526,5.90253628,1709.2,1709.1,1.3039358]
[1693483479812,6.51479871,1709.3,1708.8,1.3039358]
[1693483480013,5.90253628,1709.2,1708.8,1.3039358]
[1693483480436,6.51479871,1709.2,1708.8,1.3039358]
[1693483480602,6.55401615,1709.1,1709.0,1.3039358]
[1693483480981,6.55401615,1709.1,1708.8,1.3039358]
[1693483481183,0.65147987,1709.1,1708.8,1.3039358]
[1693483481436,0.61226243,1709.2,1709.0,1.3039358]
[1693483481608,5.90312542,1709.1,1709.0,1.3039358]
[1693483482506,0.61226243,1709.3,1709.0,1.3039358]
[1693483482719,0.61226243,1709.3,1709.2,1.3039358]
[1693483482915,0.61226243,1709.4,1709.2,1.3039358]
[1693483483099,5.90246335,1709.3,1709.2,1.3039358]
[1693483484131,0.61226243,1709.5,1709.2,1.3039358]
[1693483484287,5.90206446,1709.4,1709.2,1.3039358]
[1693483486207,0.61226243,1709.6,1709.5,1.3039358]
[1693483486528,1.53065608,1709.6,1709.5,1.3039358]
[1693483487029,7.75014656,1709.6,1709.5,1.3039358]
[1693483487326,7.44407121,1709.6,1709.5,1.3039358]
[1693483488942,8.36246486,1709.6,1709.5,1.3039358]
[1693483489504,7.44407121,1709.6,1709.5,1.3039358]
[1693483490717,0.92683563,1709.6,1709.5,1.3039358]
[1693483491021,1.53071195,1709.7,1709.5,1.3039358]
[1693483491349,0.6123183,1709.7,1709.5,1.3039358]
[1693483491546,1.54241104,1709.7,1709.5,1.3039358]
[1693483491712,0.6123183,1709.7,1709.5,1.3039358]
[1693483492021,0.6123183,1709.8,1709.5,1.3039358]
[1693483492222,0.92679673,1709.8,1709.7,1.3039358]
[1693483492522,1.52968495,1709.8,1709.7,1.3039358]
[1693483492739,1.84519038,1709.8,1709.5,1.3039358]
[1693483492934,7.43059624,1709.7,1709.5,1.3039358]
[1693483493127,0.61219304,1709.7,1709.5,1.3039358]
[1693483493537,0.89291581,1709.7,1709.5,1.3039358]
[1693483493738,0.61219304,1709.7,1709.5,1.3039358]
[1693483493913,5.90157422,1709.6,1709.5,1.3039358]
[1693483494115,6.18234479,1709.6,1709.5,1.3039358]
[1693483494610,6.79453783,1709.6,1709.5,1.3039358]
[1693483494951,5.90160619,1709.6,1709.5,1.3039358]
[1693483495248,0.61219304,1709.8,1709.5,3.3019358]
[1693483495450,0.61219304,1709.9,1709.7,1.3039358]
[1693483495637,1.53058669,1710.0,1709.7,1.3039358]
[1693483495838,5.90061949,1709.9,1709.7,1.3039358]
[1693483497117,0.61219304,1710.0,1709.7,1.3039358]
[1693483497347,0.61219304,1710.0,1709.7,1.76734874]
[1693483497552,5.9004614,1709.9,1709.7,1.76734874]
[1693483498627,0.61219304,1710.0,1709.7,4.64082939]
[1693483498823,0.61219304,1710.1,1709.9,1.3039358]
[1693483499023,5.90008187,1710.0,1709.9,1.3039358]
[1693483500420,5.90022739,1710.0,1709.9,1.3039358]
[1693483501495,0.61219304,1710.2,1710.1,1.3039358]
[1693483501663,1.19537585,1710.2,1710.1,1.3039358]
[1693483501957,0.88412035,1710.2,1710.1,1.3039358]
[1693483502127,7.36727486,1710.2,1710.1,1.3039358]
[1693483502523,9.23668785,1710.2,1710.1,1.3039358]
[1693483502724,9.78612605,1710.2,1709.8,1.3039358]
[1693483502930,0.61153371,1710.0,1709.8,1.3039358]
[1693483503130,5.89997581,1709.9,1709.8,1.3039358]
[1693483503330,7.36669409,1709.9,1709.8,1.3039358]
[1693483503561,6.78343683,1709.9,1709.8,1.3039358]
[1693483504472,6.17190312,1709.9,1709.8,1.3039358]
[1693483505027,11.92748773,1709.9,1709.6,1.3039358]
[1693483505259,7.3666883,1709.8,1709.4,1.3039358]
[1693483505457,5.89997581,1709.7,1709.4,1.3039358]
[1693483505658,6.51151199,1709.7,1709.4,1.3039358]
[1693483505871,6.55112701,1709.6,1709.4,1.3039358]
[1693483506071,6.55112701,1709.6,1709.2,1.3039358]
[1693483506072,5.89997581,1709.5,1709.2,1.3039358]
[1693483506675,1.26268738,1709.6,1709.2,1.3039358]
[1693483506981,5.9020377,1709.5,1709.2,1.3039358]
[1693483507475,5.9020377,1709.5,1709.4,1.3039358]
[1693483508238,1.87422318,1709.6,1709.4,1.3039358]
[1693483509081,4.74770383,1709.6,1709.2,1.3039358]
[1693483509280,6.78583212,1709.5,1709.2,1.3039358]
[1693483509577,0.67858321,1709.4,1709.2,1.3039358]
[1693483509744,0.61153618,1709.5,1709.2,1.3039358]
[1693483510074,0.8836852,1709.5,1709.2,1.3039358]
[1693483510247,5.9023363,1709.4,1709.2,1.3039358]
[1693483511374,5.9023363,1709.4,1709.0,1.3039358]
[1693483511577,6.51387248,1709.4,1709.0,1.3039358]
[1693483511739,4.22813414,1709.4,1709.2,1.3039358]
[1693483512081,4.22813414,1709.4,1708.5,5.37911475]
[1693483512082,6.78671443,1709.3,1709.0,1.3039358]
[1693483512282,6.78671443,1709.3,1709.2,1.3039358]
[1693483512283,0.61153618,1709.3,1709.2,1.3039358]
[1693483512481,6.78673959,1709.3,1709.2,1.3039358]
[1693483512645,7.37079758,1709.3,1709.2,1.3039358]
[1693483513700,7.37079758,1709.3,1708.7,3.0]
[1693483513701,12.83374784,1709.3,1708.7,1.3039358]
[1693483513874,1.399,1709.0,1708.7,1.3039358]
[1693483514080,1.399,1709.0,1708.1,4.1404949]
[1693483514081,4.27248065,1709.0,1708.3,1.3039358]
[1693483514382,4.88479088,1709.0,1708.6,1.3039358]
[1693483514570,0.48847909,1708.9,1708.6,1.3039358]
[1693483515276,3.36195974,1708.9,1708.6,1.3039358]
[1693483515477,3.36195974,1708.9,1708.3,1.3039358]
[1693483516000,3.97426997,1708.9,1708.3,1.3039358]
[1693483516300,3.36195974,1708.9,1708.4,0.46426989]
[1693483516526,0.61231023,1709.0,1708.6,1.3039358]
[1693483516700,1.5296108,1709.2,1709.0,1.3039358]
[1693483516904,1.22452486,1709.3,1709.0,1.3039358]
[1693483516905,1.5296108,1709.3,1709.0,1.3039358]
[1693483517077,5.90329638,1709.2,1709.0,1.3039358]
[1693483517478,0.61231023,1709.3,1709.2,1.3039358]
[1693483517665,0.61231023,1709.4,1709.2,1.3039358]
[1693483518569,0.61231023,1709.5,1709.2,1.3039358]
[1693483519117,1.5296108,1709.7,1709.5,1.3039358]
[1693483519400,5.90203363,1709.6,1709.5,1.3039358]
[1693483519776,6.78638539,1709.6,1709.5,1.3039358]
[1693483520711,7.69665399,1709.6,1709.5,1.3039358]
[1693483520870,8.28002428,1709.6,1709.5,1.3039358]
[1693483521074,7.36975568,1709.6,1709.5,1.3039358]
[1693483521271,6.78638539,1709.6,1709.5,1.3039358]
[1693483521606,0.61231023,1709.8,1709.5,1.3039358]
[1693483522703,1.46765958,1709.8,1709.5,1.3039358]
[1693483522890,0.61231023,1709.8,1709.5,1.3039358]
[1693483523208,0.61231023,1709.8,1709.7,1.3039358]
[1693483523404,6.51367747,1709.8,1709.7,1.3039358]
[1693483523610,9.02943142,1709.8,1709.5,1.3039358]
[1693483523784,7.36840518,1709.7,1709.5,1.3039358]
[1693483523984,7.36840518,1709.7,1709.3,1.3039358]
[1693483523985,6.1734358,1709.6,1709.3,1.3039358]
[1693483524314,0.61164771,1709.6,1709.3,1.3039358]
[1693483524677,1.52894828,1709.7,1709.3,1.3039358]
[1693483524878,5.90191331,1709.6,1709.3,1.3039358]
[1693483525323,6.51356102,1709.6,1709.3,1.3039358]
[1693483525511,0.61164771,1709.6,1709.3,1.3039358]